bitfinex/quotes_SOLUSD_20251214
["timestamp","ask_amount","ask_price","bid_price","bid_amount"]
[1765746484588,30.85340576,129.77,129.74,2.43003714]
[1765746484787,7.70615064,129.77,129.75,0.65]
[1765746485301,7.70591142,129.78,129.75,2.43003714]
[1765746485502,7.70591142,129.78,129.76,0.65]
[1765746485704,7.70591142,129.78,129.76,2.43003714]
[1765746486007,7.70475383,129.79,129.76,2.43003714]
[1765746486207,7.70475383,129.79,129.77,0.65]
[1765746486920,7.70475383,129.79,129.76,2.43003714]
[1765746487222,8.41475383,129.79,129.76,2.43003714]
[1765746487526,7.70475383,129.79,129.77,0.65]
[1765746488545,7.70387879,129.81,129.78,1.78003714]
[1765746488838,7.70387879,129.81,129.78,2.43003714]
[1765746489195,7.70387879,129.81,129.78,0.65]
[1765746490318,8.41387879,129.81,129.78,0.65]
[1765746494110,10.19391593,129.81,129.78,0.65]
[1765746502022,8.41387879,129.81,129.78,0.65]
[1765746503633,7.70387879,129.81,129.78,0.65]
[1765746503839,0.71,129.8,129.78,0.65]
[1765746505940,8.41387879,129.81,129.78,0.65]
[1765746509150,0.67,129.8,129.78,0.65]
[1765746509447,10.15391593,129.81,129.78,0.65]
[1765746513642,8.37387879,129.81,129.78,0.65]
[1765746513938,10.15391593,129.81,129.78,0.65]
[1765746515413,11.15249834,129.81,129.78,0.65]
[1765746516327,11.15250511,129.81,129.78,0.65]
[1765746516845,8.37387879,129.81,129.78,0.65]
[1765746517038,11.15250511,129.81,129.78,0.65]
[1765746518238,0.67,129.8,129.78,0.65]
[1765746518440,10.48250511,129.81,129.78,0.65]
[1765746518744,11.15250511,129.81,129.78,0.65]
[1765746528757,0.67,129.8,129.78,0.65]
[1765746531231,8.37424498,129.8,129.78,0.65]
[1765746531958,7.70424498,129.8,129.78,0.65]
[1765746534047,8.37424498,129.8,129.78,0.65]
[1765746537955,8.37424498,129.8,129.76,7.70629481]
[1765746537956,7.70424498,129.8,129.76,7.70629481]
[1765746538156,2.77862632,129.77,129.73,0.68]
[1765746538564,3.44862632,129.77,129.73,0.68]
[1765746538934,0.67,129.76,129.73,0.68]
[1765746539238,0.67,129.76,129.73,8.38824502]
[1765746539656,0.67,129.76,129.74,0.68]
[1765746541233,8.3762809,129.77,129.74,0.68]
[1765746541434,7.70499213,129.79,129.74,11.16624212]
[1765746541653,2.77862632,129.77,129.73,7.70809706]
[1765746541841,2.77862632,129.76,129.71,2.77862632]
[1765746542158,2.77862632,129.76,129.74,0.68]
[1765746542564,3.44862632,129.77,129.74,0.68]
[1765746543261,11.15493655,129.77,129.74,0.68]
[1765746544358,11.15518598,129.76,129.72,8.38871014]
[1765746544560,11.15518598,129.76,129.73,0.68]
[1765746545767,8.37655966,129.76,129.73,0.68]
[1765746545952,3.44862632,129.76,129.73,8.38830935]
[1765746546153,0.67,129.76,129.73,8.38830935]
[1765746549872,11.15409795,129.78,129.74,0.68]
[1765746550044,0.67,129.78,129.74,0.68]
[1765746551067,0.67,129.78,129.75,7.70712909]
[1765746551866,0.67,129.78,129.75,8.38712909]
[1765746555177,7.7048638,129.79,129.75,7.70712909]
[1765746555475,11.15448334,129.79,129.76,0.68]
[1765746556177,0.67,129.78,129.76,0.68]
[1765746557480,0.67,129.78,129.75,8.38712909]
[1765746558076,3.44961954,129.78,129.75,8.38712909]
[1765746558766,0.67,129.78,129.75,8.38712909]
[1765746559657,0.67,129.78,129.76,0.68]
[1765746561549,2.77961954,129.77,129.74,9.12]
[1765746561754,0.67,129.78,129.75,0.68]
[1765746562653,0.67,129.78,129.75,8.38670172]
[1765746567383,0.67,129.78,129.75,7.70670172]
[1765746567566,0.67,129.78,129.76,0.68]
[1765746567956,11.14457744,129.79,129.76,0.68]
[1765746568156,10.48457744,129.79,129.76,0.68]
[1765746568482,0.66,129.78,129.75,8.38670172]
[1765746569891,8.36540876,129.78,129.75,8.38670172]
[1765746572388,0.66,129.78,129.75,8.40670172]
[1765746573682,10.48460853,129.79,129.76,0.7]
[1765746573890,11.19460853,129.79,129.76,0.7]
[1765746574464,10.48460853,129.79,129.75,7.70670172]
[1765746574665,0.71,129.78,129.75,8.40670172]
[1765746575188,8.41538468,129.78,129.75,8.40670172]
[1765746576487,11.19500422,129.78,129.75,8.40670172]
[1765746577394,10.19461876,129.78,129.75,8.40670172]
[1765746578674,113.14,129.81,129.76,2.47923408]
[1765746578675,0.71,129.81,129.76,2.47923408]
[1765746578993,0.71,129.81,129.77,1.77923408]
[1765746579196,0.71,129.81,129.77,2.47923408]
[1765746579391,8.41362588,129.81,129.78,0.7]
[1765746580261,0.71,129.8,129.78,0.7]
[1765746581292,8.41420763,129.8,129.78,0.7]
[1765746581472,10.19344171,129.8,129.77,0.7]
[1765746581675,0.71,129.79,129.77,0.7]
[1765746582963,7.70420763,129.8,129.77,0.7]
[1765746583171,8.41420763,129.8,129.77,0.7]
[1765746583367,0.71,129.79,129.77,0.7]
[1765746585393,10.19399661,129.79,129.75,0.7]
[1765746585597,1.77923408,129.78,129.74,8.44]
[1765746585773,2.48923408,129.78,129.75,0.7]
[1765746587003,10.19482374,129.78,129.75,0.7]
[1765746587308,2.48923408,129.77,129.74,8.44]
[1765746587786,0.71,129.76,129.74,8.44]
[1765746588101,0.71,129.76,129.74,9.14]
[1765746590203,0.71,129.76,129.74,0.7]
[1765746590397,0.71,129.76,129.73,8.40830316]
[1765746590902,0.71,129.76,129.74,0.7]
[1765746591507,2.48954822,129.76,129.74,0.7]
[1765746591686,10.19634287,129.76,129.73,0.7]
[1765746592071,0.71,129.75,129.73,0.7]
[1765746593107,10.19634287,129.76,129.73,0.7]
[1765746593887,2.48954822,129.75,129.71,8.44]
[1765746594090,0.71,129.74,129.71,9.14]
[1765746594387,0.71,129.74,129.72,0.7]
[1765746594804,2.48954822,129.74,129.71,16.84934668]
[1765746595114,2.48954822,129.74,129.7,0.7]
[1765746595340,26.9731325,129.76,129.7,0.7]
[1765746595341,1.77954822,129.75,129.7,2.47954822]
[1765746595472,0.71,129.74,129.7,2.47954822]
[1765746595677,0.71,129.74,129.71,0.7]
[1765746595908,0.71,129.74,129.71,8.40946799]
[1765746597990,7.7074294,129.75,129.71,7.70946799]
[1765746598206,9.48697762,129.75,129.72,0.68]
[1765746598403,10.14697762,129.75,129.72,0.68]
[1765746599938,8.3674294,129.75,129.72,0.68]
[1765746600136,7.7074294,129.75,129.72,0.68]
[1765746600505,8.36677344,129.76,129.72,8.38859264]
[1765746600710,113.06609734,129.77,129.72,10.16814086]
[1765746601034,0.66,129.76,129.73,0.68]
[1765746601646,26.98019591,129.77,129.73,10.16775957]
[1765746601814,7.70609734,129.77,129.73,10.16775957]
[1765746602019,8.36609734,129.77,129.74,0.68]
[1765746603622,8.36494873,129.79,129.75,1.77954822]
[1765746604133,8.36494873,129.79,129.76,0.68]
[1765746605538,7.70494873,129.79,129.76,2.45954822]
[1765746605725,113.06434122,129.8,129.77,0.68]
[1765746605926,8.36434122,129.8,129.77,0.68]
[1765746606142,15.68663942,129.82,129.77,0.68]
[1765746606328,16.8076985,129.81,129.77,0.68]
[1765746606528,0.66,129.81,129.77,0.68]
[1765746607246,0.66,129.81,129.77,8.38565651]
[1765746607613,0.66,129.81,129.78,0.68]
[1765746608546,8.3636443,129.81,129.78,0.68]
[1765746611733,7.7036443,129.81,129.78,0.68]
[1765746612421,8.3636443,129.81,129.78,0.68]
[1765746614119,10.14319252,129.81,129.78,0.68]
[1765746617891,1.77954822,129.79,129.75,0.68]
[1765746618057,1.77954822,129.78,129.75,0.68]
[1765746618428,2.43954822,129.78,129.75,0.68]
[1765746619275,2.43954822,129.77,129.74,8.44]
[1765746619567,1.77954822,129.76,129.74,8.44]
[1765746619734,0.66,129.76,129.74,9.12]
[1765746619935,0.66,129.76,129.74,8.44]
[1765746620342,8.36663238,129.76,129.74,9.12]
[1765746623464,8.36663238,129.76,129.74,8.44]
[1765746623762,0.66,129.76,129.74,8.44]
[1765746624062,0.66,129.76,129.74,9.12]
[1765746625966,8.36602877,129.77,129.74,9.12]
[1765746627768,8.36602877,129.77,129.74,10.8993123]
[1765746631672,8.36602877,129.77,129.74,9.12]
[1765746635166,10.14534107,129.77,129.74,9.12]
[1765746635468,0.72,129.76,129.74,9.12]
[1765746636874,7.70534751,129.78,129.74,9.12]
[1765746637175,0.72,129.77,129.74,9.12]
[1765746638475,8.42609623,129.77,129.74,9.12]
[1765746638778,8.42609623,129.77,129.74,8.44]
[1765746638964,8.42609623,129.77,129.75,0.66]
[1765746640178,7.70578227,129.78,129.75,0.66]
[1765746640473,7.7048505,129.79,129.75,11.1469507]
[1765746640773,7.7048505,129.79,129.76,2.78002377]
[1765746640963,8.4248505,129.79,129.76,3.44002377]
[1765746641658,8.4248505,129.79,129.76,0.66]
[1765746644881,0.72,129.79,129.76,8.366448]
[1765746646279,11.20441483,129.8,129.77,0.66]
[1765746646758,0.72,129.79,129.75,10.48715286]
[1765746646960,0.72,129.79,129.76,0.66]
[1765746647186,0.72,129.79,129.76,8.36631033]
[1765746647565,0.72,129.79,129.77,0.66]
[1765746650168,0.72,129.79,129.75,7.70712909]
[1765746650389,3.50002377,129.79,129.76,0.66]
[1765746650682,2.78002377,129.78,129.76,0.66]
[1765746650889,3.50002377,129.78,129.76,0.66]
[1765746652183,0.72,129.78,129.76,0.66]
[1765746652493,3.50002377,129.78,129.76,0.66]
[1765746653185,0.72,129.78,129.76,0.66]
[1765746661392,0.72,129.78,129.76,8.36648581]
[1765746661601,7.70481366,129.79,129.76,8.36648581]
[1765746661778,8.42481366,129.79,129.77,0.67]
[1765746662287,0.72,129.79,129.77,0.67]
[1765746664107,2.77976433,129.8,129.77,8.37593629]
[1765746664274,3.49976433,129.8,129.77,8.37593629]
[1765746664475,3.49976433,129.8,129.78,0.67]
[1765746665204,0.72,129.79,129.76,8.37653514]
[1765746665384,3.49976433,129.8,129.76,8.37653514]
[1765746665589,3.49976433,129.8,129.77,0.67]
[1765746666405,11.20396857,129.8,129.77,0.67]
[1765746666806,0.72,129.79,129.77,0.67]
[1765746669414,11.20396857,129.8,129.77,0.67]
[1765746670430,2.77976433,129.8,129.77,0.67]
[1765746670592,8.64,129.82,129.77,8.37571875]
[1765746670593,3.49976433,129.81,129.77,8.37571875]
[1765746670907,2.77976433,129.8,129.78,0.67]
[1765746671210,3.49976433,129.8,129.78,0.67]
[1765746673510,2.77976433,129.8,129.78,0.67]
[1765746673814,3.49976433,129.8,129.78,0.67]
[1765746675845,3.49976433,129.79,129.76,8.37639178]
[1765746675999,3.49976433,129.79,129.75,0.67]
[1765746676000,2.77976433,129.77,129.75,0.67]
[1765746676703,2.77976433,129.77,129.75,8.37706531]
[1765746677503,3.49976433,129.76,129.73,0.67]
[1765746677720,2.77976433,129.75,129.73,0.67]
[1765746678431,2.77976433,129.75,129.73,8.37816146]
[1765746678609,3.49976433,129.76,129.73,8.37816146]
[1765746679633,2.77976433,129.76,129.73,8.37816146]
[1765746679811,0.72,129.75,129.73,8.37816146]
[1765746680131,3.49976433,129.76,129.73,8.37816146]
[1765746680823,0.72,129.76,129.73,8.37816146]
[1765746681026,3.49976433,129.76,129.73,8.37816146]
[1765746685134,11.20630646,129.76,129.73,8.37816146]
[1765746686737,0.71,129.75,129.73,8.37816146]
[1765746686939,2.77976433,129.77,129.73,8.37816146]
[1765746687322,2.77976433,129.77,129.73,7.70816146]
[1765746687621,2.77976433,129.77,129.74,0.71]
[1765746688035,10.48606159,129.77,129.73,8.41816146]
[1765746688228,10.48606159,129.77,129.74,0.71]
[1765746688429,10.48606159,129.77,129.73,8.41816146]
[1765746691137,0.7,129.76,129.73,8.41816146]
[1765746692735,10.48606159,129.77,129.73,7.70816146]
[1765746692913,10.48606159,129.77,129.74,0.66]
[1765746693116,11.18606159,129.77,129.74,0.66]
[1765746693331,10.48606159,129.77,129.74,0.66]
[1765746693538,0.7,129.76,129.74,0.66]
[1765746702048,2.47960289,129.76,129.74,0.66]
[1765746704856,0.7,129.75,129.72,16.80876769]
[1765746705024,2.47960289,129.75,129.72,16.14876769]
[1765746705222,2.47960289,129.75,129.73,0.66]
[1765746705423,0.7,129.75,129.73,0.66]
[1765746706045,0.7,129.75,129.72,16.14876769]
[1765746706353,1.77960289,129.74,129.72,8.44]
[1765746706652,2.47960289,129.74,129.72,8.44]
[1765746708453,2.47960289,129.74,129.71,8.36946257]
[1765746708845,0.7,129.74,129.71,8.36946257]
[1765746709151,8.4079015,129.74,129.68,0.66]
[1765746709351,1.77960289,129.72,129.68,8.37084422]
[1765746709651,2.47960289,129.73,129.69,0.66]
[1765746709843,10.18822119,129.73,129.69,0.66]
[1765746710048,0.7,129.72,129.69,0.66]
[1765746710875,2.47960289,129.73,129.69,8.37041816]
[1765746711033,16.14791887,129.74,129.69,10.15002105]
[1765746711034,10.18752176,129.74,129.69,10.15002105]
[1765746711355,23.15082764,129.74,129.71,1.77960289]
[1765746711653,0.7,129.78,129.73,1.77960289]
[1765746711860,0.1,129.79,129.76,1.77960289]
[1765746712043,9.8,129.8,129.77,1.77960289]
[1765746712044,0.7,129.8,129.77,1.77960289]
[1765746712556,0.7,129.8,129.77,0.66]
[1765746713056,8.40417784,129.8,129.76,1.77960289]
[1765746713259,8.40417784,129.8,129.77,0.66]
[1765746713645,0.7,129.79,129.77,0.66]
[1765746719566,0.7,129.79,129.76,8.38646416]
[1765746720860,0.7,129.79,129.77,0.68]
[1765746721064,0.7,129.79,129.76,8.38646416]
[1765746724374,0.7,129.79,129.76,7.70646416]
[1765746724566,0.7,129.79,129.76,8.38646416]
[1765746725263,7.70417784,129.8,129.77,0.68]
[1765746725466,8.41417784,129.8,129.77,0.68]
[1765746725796,0.71,129.79,129.77,0.68]
[1765746727669,0.71,129.79,129.76,8.38646416]
[1765746729091,0.71,129.8,129.77,0.68]
[1765746729378,2.48960289,129.8,129.77,0.68]
[1765746729966,0.71,129.79,129.77,0.68]
[1765746730500,0.71,129.79,129.77,8.3858467]
[1765746730982,0.91,129.82,129.78,1.77960289]
[1765746731154,0.91,129.82,129.79,0.68]
[1765746732376,0.91,129.82,129.79,8.38464477]
[1765746733779,0.91,129.82,129.8,0.68]
[1765746734182,0.91,129.82,129.79,0.68]
[1765746735869,0.91,129.82,129.79,8.38459753]
[1765746736075,2.48789917,129.81,129.78,7.70527277]
[1765746736258,2.48789917,129.81,129.77,24.52941765]
[1765746736585,2.48789917,129.81,129.78,0.68]
[1765746736889,0.71,129.8,129.77,8.38579613]
[1765746737485,2.48789917,129.8,129.76,8.38636751]
[1765746737786,1.77789917,129.78,129.74,10.89789917]
[1765746737963,17.92349008,129.78,129.74,18.60550239]
[1765746738169,0.71,129.77,129.74,17.92550239]
[1765746738485,0.71,129.77,129.74,8.38760322]
[1765746743003,0.71,129.77,129.74,7.70760322]
[1765746743182,8.44,129.78,129.75,8.38697558]
[1765746743382,9.15,129.78,129.75,8.38697558]
[1765746743582,8.44,129.78,129.76,0.68]
[1765746744094,8.44,129.78,129.76,8.38633535]
[1765746744690,9.15,129.79,129.76,8.38633535]
[1765746744886,0.71,129.79,129.76,8.38633535]
[1765746745074,9.15,129.79,129.76,8.38633535]
[1765746745274,0.71,129.79,129.76,8.38633535]
[1765746745481,9.15,129.79,129.76,8.38633535]
[1765746745676,0.71,129.79,129.76,8.38633535]
[1765746747187,10.19269527,129.79,129.75,8.41692351]
[1765746747482,0.68,129.78,129.75,8.41692351]
[1765746749413,9.48225688,129.8,129.77,1.77789917]
[1765746749573,0.68,129.81,129.78,0.71]
[1765746749973,0.68,129.81,129.77,0.69]
[1765746750477,2.45789917,129.81,129.77,0.69]
[1765746750798,0.68,129.81,129.77,0.69]
[1765746750967,0.67,129.8,129.77,0.69]
[1765746751492,0.67,129.8,129.77,8.39554823]
[1765746753025,0.67,129.8,129.77,0.69]
[1765746753202,0.67,129.8,129.76,8.39631678]
[1765746753493,9.11,129.8,129.76,8.39631678]
[1765746753681,9.11,129.8,129.77,0.69]
[1765746754394,8.44,129.8,129.77,0.69]
[1765746754600,9.11,129.8,129.77,0.69]
[1765746755769,9.11,129.8,129.77,8.3959156]
[1765746756594,0.67,129.79,129.75,8.39674827]
[1765746756797,0.67,129.79,129.76,0.69]
[1765746757877,0.67,129.79,129.76,2.46789917]
[1765746758085,8.44,129.8,129.77,7.7059344]
[1765746758289,9.11,129.8,129.77,8.3959344]
[1765746759105,8.37418963,129.8,129.77,0.69]
[1765746759279,16.81418963,129.8,129.77,0.69]
[1765746759484,8.57319709,129.82,129.77,11.17423641]
[1765746759807,0.67,129.81,129.78,2.77843574]
[1765746760000,0.67,129.81,129.78,3.46843574]
[1765746760202,17.01319709,129.82,129.79,0.69]
[1765746761102,8.64,129.82,129.79,11.17295008]
[1765746761301,0.2,129.82,129.79,11.17295008]
[1765746761502,0.2,129.82,129.8,0.69]
[1765746761892,0.87,129.82,129.8,0.69]
[1765746762392,0.2,129.82,129.81,0.69]
[1765746762605,0.2,129.86,129.85,0.14216157]
[1765746762806,0.2,129.91,129.87,13.0470912]
[1765746763098,0.2,129.91,129.87,15.82552694]
[1765746763402,0.87,129.89,129.86,12.20225775]
[1765746763608,0.87,129.89,129.86,8.44]
[1765746763809,0.87,129.89,129.86,9.12]
[1765746763981,2.97843574,129.89,129.86,8.44]
[1765746764181,0.67,129.88,129.86,8.44]
[1765746764406,0.67,129.88,129.85,7.70119368]
[1765746766200,0.2,129.89,129.86,0.68]
[1765746766514,0.87,129.89,129.86,0.68]
[1765746767298,0.87,129.89,129.86,8.3801914]
[1765746768622,0.2,129.89,129.86,8.3801914]
[1765746769305,0.87,129.89,129.86,8.3801914]
[1765746771508,0.2,129.89,129.87,0.68]
[1765746771715,0.2,129.89,129.87,3.45476015]
[1765746771910,0.2,129.89,129.88,0.68]
[1765746772111,0.2,129.89,129.88,8.37941484]
[1765746773920,0.2,129.89,129.88,16.81941484]
[1765746774125,0.2,129.89,129.88,19.59417499]
[1765746774294,0.2,129.89,129.88,28.68844305]
[1765746775301,0.2,129.89,129.88,25.9136829]
[1765746775514,0.2,129.89,129.88,28.68844305]
[1765746775896,0.2,129.89,129.88,29.45838453]
[1765746776237,0.2,129.9,129.89,16.79309014]
[1765746776417,0.2,129.9,129.89,20.24785029]
[1765746779740,0.2,129.9,129.89,82.84785029]
[1765746779934,0.2,129.91,129.89,85.62261044]
[1765746780111,0.2,129.91,129.9,15.03946522]
[1765746780432,0.2,129.91,129.9,77.63946522]
[1765746780639,0.2,129.92,129.91,21.85703612]
[1765746780834,0.2,129.92,129.91,33.75179627]
[1765746781038,0.2,129.93,129.92,0.28432314]
[1765746781339,0.2,129.93,129.92,3.73908329]
[1765746782037,0.2,129.93,129.92,11.43612762]
[1765746783835,0.2,129.93,129.92,7.69704433]
[1765746784936,0.91,129.93,129.91,16.11744731]
[1765746785303,0.71,129.92,129.91,16.11744731]
[1765746785639,0.71,129.92,129.91,7.69744731]
[1765746785843,0.71,129.92,129.9,26.94244496]
[1765746788367,2.77476015,129.91,129.87,19.24925892]
[1765746788523,2.77476015,129.89,129.86,7.70049354]
[1765746788922,0.71,129.88,129.86,7.70049354]
[1765746792158,0.71,129.9,129.86,11.15525369]
[1765746792332,0.71,129.89,129.86,10.47525369]
[1765746793252,0.71,129.89,129.86,29.7267553]
[1765746793940,3.48476015,129.91,129.87,0.68]
[1765746794326,0.71,129.9,129.86,30.4067553]
[1765746797656,0.71,129.9,129.86,26.95199515]
[1765746800046,0.71,129.9,129.86,29.7267553]
[1765746804245,0.71,129.9,129.86,30.4067553]
[1765746805766,0.71,129.9,129.86,29.7265625]
[1765746806746,0.71,129.9,129.86,30.4065625]
[1765746807251,0.71,129.9,129.86,29.7265625]
[1765746808566,0.71,129.9,129.86,30.4065625]
[1765746811269,0.71,129.9,129.87,0.67]
[1765746811570,0.71,129.9,129.86,30.3965625]
[1765746812670,0.71,129.9,129.88,7.69941484]
[1765746825767,0.71,129.9,129.88,0.67]
[1765746826183,0.71,129.9,129.87,7.7000077]
[1765746826370,0.71,129.9,129.87,8.3700077]
[1765746827988,0.71,129.9,129.87,7.7000077]
[1765746828285,0.71,129.9,129.88,8.36923286]
[1765746828485,0.71,129.9,129.88,7.69923286]
[1765746830886,0.71,129.9,129.88,0.67]
[1765746831090,0.71,129.9,129.87,8.3700077]
[1765746832084,10.17297002,129.92,129.88,0.67]
[1765746832289,0.7,129.91,129.88,0.67]
[1765746833170,0.7,129.91,129.88,8.36920652]
[1765746834397,9.34,129.93,129.89,2.44565848]
[1765746834568,0.9,129.93,129.89,2.44565848]
[1765746834769,0.9,129.93,129.9,0.67]
[1765746835577,0.9,129.93,129.9,2.44565848]
[1765746836095,0.2,129.93,129.91,1.77565848]
[1765746836290,0.2,129.93,129.91,2.42565848]
[1765746836486,0.2,129.93,129.92,7.69704433]
[1765746840200,0.2,129.93,129.92,19.21697087]
[1765746840497,0.2,129.93,129.92,22.29780423]
[1765746841299,0.2,129.93,129.92,22.29559875]
[1765746842594,0.9,129.93,129.92,10.77787769]
[1765746842792,0.9,129.93,129.92,7.69704433]
[1765746844808,0.8,129.93,129.92,7.69704433]
[1765746853015,0.8,129.93,129.91,16.13743306]
[1765746853214,0.8,129.93,129.92,2.423453]
[1765746853215,0.1,129.93,129.92,2.423453]
[1765746853405,0.1,129.93,129.92,24.56481226]
[1765746854212,0.1,129.93,129.92,34.23355872]
[1765746856304,0.1,129.93,129.92,41.93060305]
[1765746856815,1e-08,129.93,129.92,41.93060305]
[1765746857024,1e-08,129.93,129.92,42.70030748]
[1765746858824,1e-08,129.94,129.93,8.80994492]
[1765746859016,1e-08,129.94,129.93,82.25339792]
[1765746859398,1e-08,129.94,129.93,85.33351958]
[1765746859793,1e-08,129.94,129.93,93.02997151]
[1765746866637,1e-08,129.94,129.93,82.83651851]
[1765746866829,1e-08,129.94,129.93,93.31429465]
[1765746867841,1e-08,129.94,129.93,84.89429465]
[1765746868019,1e-08,129.94,129.93,93.31429465]
[1765746868817,1e-08,129.94,129.93,30.71429465]
[1765746870744,1e-08,129.94,129.93,22.29429465]
[1765746871043,1e-08,129.94,129.93,30.71429465]
[1765746871240,1e-08,129.94,129.93,22.29429465]
[1765746871437,1e-08,129.94,129.93,30.71429465]
[1765746874746,1e-08,129.94,129.93,93.31429465]
[1765746876726,1e-08,129.94,129.93,93.31398517]
[1765746877125,1e-08,129.94,129.93,90.23386351]
[1765746878051,1e-08,129.94,129.93,93.31422237]
[1765746880703,1e-08,129.94,129.93,30.71422237]
[1765746881528,1e-08,129.94,129.93,31.71155223]
[1765746889757,1e-08,129.94,129.93,28.94107885]
[1765746889959,0.71000001,129.94,129.93,27.98119337]
[1765746891054,1e-08,129.94,129.93,27.98119337]
[1765746900835,1e-08,129.94,129.93,28.63119337]
[1765746901566,0.2,129.95,129.93,32.17131194]
[1765746901765,0.2,129.95,129.94,15.00089168]
[1765746902459,0.2,129.95,129.94,22.6967513]
[1765746902663,0.2,129.95,129.94,19.92627792]
[1765746904472,0.2,129.95,129.94,82.52627792]
[1765746906560,0.2,129.95,129.94,98.3438425]
[1765746907984,0.2,129.96,129.95,8.80994492]
[1765746908161,0.2,129.96,129.95,23.42089168]
[1765746908982,0.2,129.96,129.95,31.11615909]
[1765746910480,0.2,129.96,129.95,93.71615909]
[1765746912185,0.66,129.98,129.96,0.28432314]
[1765746912386,0.66,129.98,129.97,20.28474144]
[1765746912586,0.66,129.98,129.97,20.74484463]
[1765746912883,0.66,129.99,129.98,9.09426806]
[1765746913097,0.86,130.01,129.98,16.2054212]
[1765746913386,0.86,130.01,130.0,12.32484463]
[1765746914166,0.86,130.01,130.0,16.78657575]
[1765746914363,0.86,130.01,130.0,7.69230769]
[1765746914567,0.86,130.01,130.0,6.97230769]
[1765746915061,0.86,130.01,129.99,7.69274826]
[1765746915391,0.66,130.0,129.99,7.69274826]
[1765746915887,0.66,130.0,129.99,10.92332483]
[1765746916187,0.66,130.0,129.98,10.92406787]
[1765746916996,0.66,130.0,129.98,7.6934913]
[1765746917299,0.66,130.0,129.98,10.92406787]
[1765746917876,0.66,130.0,129.98,7.6934913]
[1765746919482,0.66,130.0,129.98,10.92406787]
[1765746920500,0.66,130.0,129.98,7.6934913]
[1765746921594,0.66,130.0,129.98,10.92406787]
[1765746927014,0.66,130.0,129.99,10.92347602]
[1765746937537,0.66,130.0,129.98,10.92406787]
[1765746940530,0.66,130.0,129.99,10.92347602]
[1765746941518,0.66,130.0,129.98,2.06759503]
[1765746942042,0.66,130.0,129.98,9.76069661]
[1765746943248,0.66,130.0,129.99,2.06759503]
[1765746947559,0.66,130.0,129.98,9.76069661]
[1765746947748,0.66,130.0,129.97,18.18154188]
[1765746947936,0.66,130.0,129.98,7.69348261]
[1765746952775,10.12491259,130.0,129.95,19.23740044]
[1765746953076,0.66,130.0,129.96,2.48259837]
[1765746953378,0.68,129.99,129.96,1.77259837]
[1765746954236,0.68,129.99,129.97,7.69401423]
[1765746954440,0.68,129.99,129.97,9.4666126]
[1765746958172,0.68,129.99,129.97,7.69401423]
[1765746958342,0.68,129.99,129.97,9.4666126]
[1765746960180,0.2,130.01,129.97,9.4666126]
[1765746960379,0.2,130.01,130.0,1.77259837]
[1765746960853,0.2,130.01,130.0,2.46259837]
[1765746961050,0.2,130.01,130.0,10.15490606]
[1765746961250,0.2,130.01,130.0,19.24917412]
[1765746963655,1e-08,130.01,130.0,19.24917412]
[1765746963856,0.2,130.05,130.04,8.80994492]
[1765746964063,0.2,130.05,130.04,19.97686643]
[1765746964453,0.2,130.05,130.04,23.05461813]
[1765746965559,0.2,130.05,130.04,22.91245656]
[1765746965759,0.2,130.05,130.04,30.60239811]
[1765746967867,0.89,130.05,130.04,19.18769325]
[1765746968072,0.89,130.05,130.04,16.10994155]
[1765746968271,0.89,130.05,130.04,7.68994155]
[1765746969560,0.89,130.05,130.03,7.69053295]
[1765746970179,0.2,130.05,130.03,7.69053295]